[Event "Kragero Resort Chess A 2019"]
[Site "Kragero"]
[Date "2019.02.23"]
[Round "7.29"]
[White "Stray, Gunnar"]
[Black "Mashinskaya, Iulia"]
[Result "1/2-1/2"]
[ECO "B49"]
[WhiteElo "1994"]
[BlackElo "2261"]
[Annotator "NA"]
[PlyCount "53"]
[EventDate "2019.02.20"]
[EventType "swiss"]
[EventCountry "NOR"]
[SourceTitle "playchess.com"]
[Source "ChessBase"]
[SourceQuality "1"]
[TimeControl "5400+30"]

1. e4 {[%emt 0:00:00]} c5 {[%emt 0:00:00]} 2. Nf3 {[%emt 0:00:00]} Nc6 {[%emt 0:00:02]} 3. d4 {[%emt 0:00:00]} cxd4 {[%emt 0:00:06]} 4. Nxd4 {[%emt 0:00:00]} Qc7 {[%emt 0:00:14]} 5. Nc3 {[%emt 0:01:03]} e6 {[%emt 0:00:11]} 6. Be2 {[%emt 0:00:27]} a6 {[%emt 0:01:05]} 7. O-O {[%emt 0:00:10]} Nf6 {[%emt 0:00:21]} 8. Be3 {[%emt 0:00:30]} Bb4 {[%emt 0:03:36]} 9. Na4 {[%emt 0:04:56]} Be7 {[%emt 0:06:15]} 10. Nxc6 {[%emt 0:03:13]} bxc6 {[%emt 0:00:15]} 11. Nb6 {[%emt 0:00:20]} Rb8 {[%emt 0:00:13]} 12. Nxc8 {[%emt 0:00:16]} Qxc8 {[%emt 0:01:07]} 13. Bd4 {[%emt 0:01:48]} c5 {[%emt 0:13:47]} 14. Be5 {[%emt 0:06:26]} Rb6 {[%emt 0:06:00]} 15. b3 {[%emt 0:04:27]} Qc6 {[%emt 0:07:12]} 16. Bf3 {[%emt 0:06:24]} d6 {[%emt 0:15:17]} 17. Bxf6 {[%emt 0:06:51]} gxf6 {[%emt 0:00:08]} 18. e5 {[%emt 0:00:23]} Qc7 {[%emt 0:01:10]} 19. exd6 {[%emt 0:01:38]} Bxd6 {[%emt 0:02:55]} 20. h3 {[%emt 0:03:14]} Be5 {[%emt 0:03:32]} 21. Rb1 {[%emt 0:01:51]} Rd6 {[%emt 0:01:47]} 22. Qe2 {[%emt 0:01:23]} Ke7 {[%emt 0:00:35]} 23. Rbd1 {[%emt 0:03:08]} Rhd8 {[%emt 0:00:46]} 24. Rxd6 {[%emt 0:00:19]} Qxd6 {[%emt 0:00:41]} 25. Rd1 {[%emt 0:00:29]} Qxd1+ {[%emt 0:02:55]} 26. Qxd1 {[%emt 0:00:20]} Rxd1+ {[%emt 0:00:04]} 27. Bxd1 {[%emt 0:00:07]} 1/2-1/2

[Event "Kragero Resort Chess A 2019"]
[Site "Kragero"]
[Date "2019.02.23"]
[Round "7.30"]
[White "Bergsson, Stefan"]
[Black "Gudmundsson, Bjorgvin S"]
[Result "1-0"]
[ECO "B12"]
[WhiteElo "2172"]
[BlackElo "1941"]
[Annotator "NA"]
[PlyCount "59"]
[EventDate "2019.02.20"]
[EventType "swiss"]
[EventCountry "NOR"]
[SourceTitle "playchess.com"]
[Source "ChessBase"]
[SourceQuality "1"]
[TimeControl "5400+30"]

1. e4 {[%emt 0:02:37]} c6 {[%emt 0:00:00]} 2. Ne2 {[%emt 0:01:40]} d5 {[%emt 0:00:36]} 3. e5 {[%emt 0:00:04]} c5 {[%emt 0:04:51]} 4. c3 {[%emt 0:00:36]} Nc6 {[%emt 0:01:13]} 5. d4 {[%emt 0:00:12]} cxd4 {[%emt 0:01:18]} 6. cxd4 {[%emt 0:00:09]} Bf5 {[%emt 0:03:27]} 7. Nbc3 {[%emt 0:02:06]} e6 {[%emt 0:00:16]} 8. Ng3 {[%emt 0:00:45]} Bg6 {[%emt 0:00:05]} 9. Be3 {[%emt 0:00:52]} Qb6 {[%emt 0:14:39]} 10. Qd2 {[%emt 0:00:33]} Nge7 {[%emt 0:01:51]} 11. Be2 {[%emt 0:00:58]} h5 {[%emt 0:10:49]} 12. h4 {[%emt 0:00:22]} Nf5 {[%emt 0:00:05]} 13. Nxf5 {[%emt 0:00:34]} Bxf5 {[%emt 0:00:04]} 14. O-O {[%emt 0:00:40]} Be7 {[%emt 0:02:15]} 15. g3 {[%emt 0:00:17]} f6 {[%emt 0:16:24]} 16. exf6 {[%emt 0:00:37]} gxf6 {[%emt 0:04:17]} 17. Qd1 {[%emt 0:04:28]} Qxb2 {[%emt 0:07:54]} 18. Bxh5+ {[%emt 0:02:56]} Kd7 {[%emt 0:00:24]} 19. Rc1 {[%emt 0:01:23]} Rag8 {[%emt 0:04:03]} 20. Qf3 {[%emt 0:01:32]} Bd6 {[%emt 0:03:41]} 21. Nxd5 {[%emt 0:02:41]} Rf8 {[%emt 0:08:51]} 22. Bg4 {[%emt 0:01:30]} Bxg4 {[%emt 0:03:30]} 23. Qxg4 {[%emt 0:00:08]} Qxa2 {[%emt 0:01:25]} 24. Nc3 {[%emt 0:02:18]} Qc4 {[%emt 0:01:01]} 25. Qg7+ {[%emt 0:05:35]} Kc8 {[%emt 0:01:27]} 26. Ne4 {[%emt 0:02:41]} Qd5 {[%emt 0:00:45]} 27. Nxf6 {[%emt 0:00:35]} Rxf6 {[%emt 0:01:13]} 28. Qxf6 {[%emt 0:00:35]} Rf8 {[%emt 0:00:13]} 29. Qh6 {[%emt 0:00:25]} Qf5 {[%emt 0:00:35]} 30. d5 {[%emt 0:01:28] Nb8 [%emt 00:00:06]} 1-0

[Event "Kragero Resort Chess A 2019"]
[Site "Kragero"]
[Date "2019.02.23"]
[Round "7.31"]
[White "Saltvedt, Martin"]
[Black "Unneland, Mathias"]
[Result "1-0"]
[ECO "E61"]
[WhiteElo "2095"]
[BlackElo "1890"]
[Annotator "NA"]
[PlyCount "89"]
[EventDate "2019.02.20"]
[EventType "swiss"]
[EventCountry "NOR"]
[SourceTitle "playchess.com"]
[Source "ChessBase"]
[SourceQuality "1"]
[TimeControl "5400+30"]

1. d4 {[%emt 0:00:00]} Nf6 {[%emt 0:00:00]} 2. Nf3 {[%emt 0:00:42]} g6 {[%emt 0:00:00]} 3. c4 {[%emt 0:01:01]} Bg7 {[%emt 0:00:00]} 4. e3 {[%emt 0:00:17]} O-O {[%emt 0:01:02]} 5. Nc3 {[%emt 0:00:49]} d6 {[%emt 0:00:07]} 6. Be2 {[%emt 0:02:58]} c6 {[%emt 0:05:13]} 7. O-O {[%emt 0:00:52]} Nfd7 {[%emt 0:02:08]} 8. b3 {[%emt 0:02:14]} e5 {[%emt 0:01:47]} 9. Ba3 {[%emt 0:09:52]} Qa5 {[%emt 0:01:27]} 10. Qc1 {[%emt 0:02:31]} c5 {[%emt 0:01:01]} 11. Nb5 {[%emt 0:06:42]} Qb6 {[%emt 0:03:40]} 12. dxc5 {[%emt 0:05:46]} dxc5 {[%emt 0:04:56]} 13. Bb2 {[%emt 0:00:27]} f5 {[%emt 0:03:10]} 14. Qd2 {[%emt 0:03:25]} e4 {[%emt 0:07:29]} 15. Qd5+ {[%emt 0:03:23]} Kh8 {[%emt 0:00:10]} 16. Bxg7+ {[%emt 0:01:46]} Kxg7 {[%emt 0:00:09]} 17. Ng5 {[%emt 0:02:31]} Rf6 {[%emt 0:04:26]} 18. Rfd1 {[%emt 0:15:55]} h6 {[%emt 0:00:22]} 19. Nh3 {[%emt 0:03:14]} Rf8 {[%emt 0:01:41]} 20. Nf4 {[%emt 0:02:57]} Nf6 {[%emt 0:09:05]} 21. Qe5 {[%emt 0:01:16]} Nbd7 {[%emt 0:01:35]} 22. Qc3 {[%emt 0:07:02]} Kh7 {[%emt 0:01:00]} 23. Rd6 {[%emt 0:00:19]} Qd8 {[%emt 0:00:57]} 24. Ne6 {[%emt 0:00:18]} Qe7 {[%emt 0:00:09]} 25. Nxf8+ {[%emt 0:00:35]} Qxf8 {[%emt 0:00:14]} 26. Rad1 {[%emt 0:00:17]} Qe7 {[%emt 0:00:59]} 27. Nc7 {[%emt 0:03:56]} Rb8 {[%emt 0:00:08]} 28. Re6 {[%emt 0:00:25]} Qf7 {[%emt 0:00:30]} 29. Rdd6 {[%emt 0:00:57]} Ng8 {[%emt 0:01:15]} 30. Rxg6 {[%emt 0:06:42]} Nf8 {[%emt 0:02:37]} 31. Rxg8 {[%emt 0:04:58]} Kxg8 {[%emt 0:01:37]} 32. Rxh6 {[%emt 0:03:08]} Qg7 {[%emt 0:00:39]} 33. Qxg7+ {[%emt 0:00:21]} Kxg7 {[%emt 0:00:10]} 34. Rd6 {[%emt 0:00:16]} Bd7 {[%emt 0:00:17]} 35. f3 {[%emt 0:01:17]} Rc8 {[%emt 0:00:50]} 36. Nd5 {[%emt 0:01:01]} Re8 {[%emt 0:01:03]} 37. Nf6 {[%emt 0:01:59]} Re7 {[%emt 0:00:35]} 38. fxe4 {[%emt 0:00:34]} Bc6 {[%emt 0:00:12]} 39. Kf2 {[%emt 0:03:21]} fxe4 {[%emt 0:00:12]} 40. Nh5+ {[%emt 0:00:47]} Kh7 {[%emt 0:00:19]} 41. Bg4 {[%emt 0:00:27]} Rf7+ {[%emt 0:00:15]} 42. Nf4 {[%emt 0:00:45]} Nd7 {[%emt 0:02:04]} 43. Bh5 {[%emt 0:01:20]} Rf8 {[%emt 0:00:10]} 44. Bg6+ {[%emt 0:00:12]} Kg8 {[%emt 0:00:09]} 45. Bxe4 {[%emt 0:00:29]} 1-0

[Event "Kragero Resort Chess A 2019"]
[Site "Kragero"]
[Date "2019.02.24"]
[Round "8.25"]
[White "Boe, Oeyvind"]
[Black "Saltvedt, Martin"]
[Result "1-0"]
[ECO "A30"]
[WhiteElo "1908"]
[BlackElo "2095"]
[Annotator "NA RC"]
[PlyCount "119"]
[EventDate "2019.02.20"]
[EventType "swiss"]
[EventCountry "NOR"]
[SourceTitle "playchess.com"]
[Source "ChessBase"]
[SourceQuality "1"]
[TimeControl "5400+30"]

1. d4 {[%emt 0:00:00]} Nf6 {[%emt 0:00:00]} 2. Nf3 {[%emt 0:00:00]} b6 {[%emt 0:00:41]} 3. c4 {[%emt 0:01:54]} Bb7 {[%emt 0:01:32]} 4. e3 {[%emt 0:00:58]} e6 {[%emt 0:01:33]} 5. Be2 {[%emt 0:00:07]} g6 {[%emt 0:07:37]} 6. O-O {[%emt 0:00:17]} Bg7 {[%emt 0:00:03]} 7. b3 {[%emt 0:00:24]} O-O {[%emt 0:00:08]} 8. Bb2 {[%emt 0:00:02]} c5 {[%emt 0:02:11]} 9. Ne5 $146 {[%emt 0:06:31] A30: Symmetrical English: Double Fianchetto and Hedgehog} ({Predecessor:} 9. Nc3 d6 10. dxc5 bxc5 11. Nb5 Ne8 12. Bxg7 Kxg7 13. Qc2 a6 14. Nc3 Nc6 15. Rad1 Qc7 16. Qb2 Kg8 17. Ng5 h6 {½-½ (79) Nakamura,H (2777)-Hou,Y (2658) chess.com INT 2018}) 9... d6 {[%emt 0:01:13]} 10. Bf3 {[%emt 0:00:19]} Ne4 {[%emt 0:02:22]} 11. Nd3 {[%emt 0:01:34]} Nd7 {[%emt 0:08:14]} 12. Nc3 {[%emt 0:20:36]} f5 {[%emt 0:06:35]} 13. Nf4 {[%emt 0:02:04]} Qe7 {[%emt 0:01:46]} 14. Bxe4 {[%emt 0:02:09]} fxe4 {[%emt 0:01:03]} 15. d5 {[%emt 0:00:24]} exd5 {[%emt 0:06:46]} 16. Ncxd5 {[%emt 0:00:51]} Bxd5 {[%emt 0:04:50]} 17. Qxd5+ {[%emt 0:02:06]} ({Don't do} 17. Nxd5 $6 Qd8 $16) 17... Qf7 {[%emt 0:03:49]} 18. Bxg7 {[%emt 0:00:28]} Qxd5 {[%emt 0:00:14]} 19. Nxd5 {[%emt 0:00:06]} Kxg7 {[%emt 0:00:58]} 20. Nc7 {[%emt 0:00:08]} Rac8 {[%emt 0:05:17]} 21. Ne6+ {[%emt 0:00:15]} Kf6 {[%emt 0:02:30]} 22. Nxf8 {[%emt 0:00:06]} Nxf8 {[%emt 0:00:31]} 23. f3 {[%emt 0:01:43]} Nd7 {[%emt 0:05:16]} 24. fxe4+ {[%emt 0:00:19]} Ke6 {[%emt 0:00:16]} 25. Rf4 {[%emt 0:03:11]} Re8 {[%emt 0:02:02]} 26. Kf2 $18 {[%emt 0:12:32]} Nf6 {[%emt 0:07:06]} 27. Rd1 {[%emt 0:04:31]} Re7 {[%emt 0:02:04]} 28. h4 {[%emt 0:04:17]} Rd7 {[%emt 0:08:17]} 29. Ke2 {[%emt 0:11:37]} Nh5 {[%emt 0:04:38]} 30. Rf3 {[%emt 0:00:12]} Nf6 {[%emt 0:02:33]} 31. Kd3 {[%emt 0:05:12]} Ng4 {[%emt 0:01:13]} 32. Rf4 {[%emt 0:04:00]} h5 {[%emt 0:02:49]} 33. Rdf1 {[%emt 0:00:41]} Ne5+ {[%emt 0:03:47]} 34. Ke2 {[%emt 0:00:24]} Re7 {[%emt 0:00:21]} 35. Rf6+ {[%emt 0:03:30]} Kd7 {[%emt 0:00:05]} 36. Rd1 {[%emt 0:02:46]} Re6 {[%emt 0:00:09]} 37. Rf8 {[%emt 0:00:19]} Nc6 {[%emt 0:02:06]} 38. Rf4 {[%emt 0:03:19]} Re7 {[%emt 0:02:06]} 39. Rf6 {[%emt 0:00:23]} Re6 {[%emt 0:00:09]} 40. Rf7+ {[%emt 0:00:26]} Re7 {[%emt 0:00:25]} 41. Rxe7+ {[%emt 0:00:51]} Kxe7 {[%emt 0:00:08]} 42. Kf3 {[%emt 0:00:15]} Ke6 {[%emt 0:00:19]} 43. Kf4 {[%emt 0:00:26]} a5 {[%emt 0:02:04]} 44. Kg5 {[%emt 0:03:50]} Ne7 {[%emt 0:00:55]} 45. a4 {[%emt 0:01:18]} Ke5 {[%emt 0:00:22]} 46. Rd5+ {[%emt 0:01:17]} Ke6 {[%emt 0:00:48]} 47. g3 {[%emt 0:01:22]} Nxd5 {[%emt 0:00:43]} 48. exd5+ {[%emt 0:00:56]} Kf7 {[%emt 0:00:06]} 49. g4 {[%emt 0:00:38]} hxg4 {[%emt 0:00:15]} 50. Kxg4 {[%emt 0:00:05]} Kg7 {[%emt 0:00:41]} 51. Kg5 {[%emt 0:00:08]} Kf7 {[%emt 0:00:10]} 52. Kg4 {[%emt 0:02:48]} Kg7 {[%emt 0:00:10]} 53. Kf4 {[%emt 0:00:14]} Kf7 {[%emt 0:00:29]} 54. Kg5 {[%emt 0:00:28]} Kg7 {[%emt 0:00:09]} 55. Kf4 {[%emt 0:00:38]} Kf7 {[%emt 0:00:15]} 56. e4 {[%emt 0:00:12]} Kf6 {[%emt 0:00:13]} 57. Kg4 {[%emt 0:00:07]} Kg7 {[%emt 0:00:27]} 58. Kf4 {[%emt 0:00:20]} Kf6 {[%emt 0:00:05]} 59. e5+ {[%emt 0:00:15]} dxe5+ {[%emt 0:00:05]} 60. Ke4 {[%emt 0:00:04]} 1-0

[Event "Kragero Resort Chess A 2019"]
[Site "Kragero"]
[Date "2019.02.24"]
[Round "8.26"]
[White "Tenold, Andreas"]
[Black "Birkisson, Bjorn Holm"]
[Result "1/2-1/2"]
[ECO "D31"]
[WhiteElo "1822"]
[BlackElo "2078"]
[Annotator "NA RC"]
[PlyCount "69"]
[EventDate "2019.02.20"]
[EventType "swiss"]
[EventCountry "NOR"]
[SourceTitle "playchess.com"]
[Source "ChessBase"]
[SourceQuality "1"]
[TimeControl "5400+30"]

1. d4 {[%emt 0:00:00]} d5 {[%emt 0:13:21]} 2. c4 {[%emt 0:00:00]} e6 {[%emt 0:00:34]} 3. Nc3 {[%emt 0:00:00]} Be7 {[%emt 0:00:09]} 4. cxd5 {[%emt 0:00:17]} exd5 {[%emt 0:00:07]} 5. Bf4 {[%emt 0:00:08]} c6 {[%emt 0:00:38]} 6. e3 {[%emt 0:00:07]} Bf5 {[%emt 0:00:51]} 7. g4 {[%emt 0:00:50]} Bg6 {[%emt 0:01:28]} 8. h4 {[%emt 0:02:38] D31: Queen's Gambit Declined: Semi-Slav without ...Nf6 (+ Marshall Gambit and Noteboom) and Exchange Variation lines without ...Nf6} h6 {[%emt 0:11:03]} 9. h5 {[%emt 0:00:21]} Bh7 {[%emt 0:00:06]} 10. Bd3 {[%emt 0:00:05]} Bxd3 {[%emt 0:00:37]} 11. Qxd3 {[%emt 0:00:08]} Nf6 {[%emt 0:02:24] LiveBook: 7 Games} 12. f3 {[%emt 0:00:51]} Bd6 {[%emt 0:04:51]} 13. Nge2 {[%emt 0:06:22] [#]} a5 $146 {[%emt 0:01:43]} ({Predecessor:} 13... Bxf4 $14 14. Nxf4 O-O (14... Qd6 15. O-O-O Nbd7 {1-0 (38) Vitiugov,N (2722)-Zhou,J (2668) Ningbo 2010})) 14. O-O-O {[%emt 0:04:09]} Na6 {[%emt 0:00:19]} 15. Ng3 {[%emt 0:05:19]} ({White should play} 15. g5 $16 hxg5 16. Bxg5) 15... Nh7 {[%emt 0:05:55]} 16. Bxd6 {[%emt 0:09:53]} Qxd6 {[%emt 0:00:25]} 17. Nf5 {[%emt 0:01:37]} Qf6 {[%emt 0:00:15]} 18. e4 {[%emt 0:02:02]} O-O-O {[%emt 0:07:21]} 19. exd5 {[%emt 0:12:41]} Nb4 {[%emt 0:06:04]} 20. Qe2 {[%emt 0:02:09]} cxd5 {[%emt 0:11:46]} 21. Qb5 {[%emt 0:06:22]} g6 $18 {[%emt 0:00:56]} (21... Qa6 {might work better.} 22. Qxa6 (22. Nxg7 Nxa2+ 23. Kd2 Qxb5 $16) (22. Qc5+ Kb8 $11) 22... Nxa6 23. Nxg7 Nc7) 22. hxg6 {[%emt 0:08:23]} fxg6 {[%emt 0:00:11]} 23. Nh4 {[%emt 0:04:12]} Nc6 {[%emt 0:04:01]} 24. Kb1 {[%emt 0:01:57]} Qd6 {[%emt 0:03:21]} 25. f4 {[%emt 0:04:39]} g5 {[%emt 0:03:00]} 26. fxg5 {[%emt 0:01:56]} hxg5 {[%emt 0:00:12]} 27. Nf5 {[%emt 0:00:50]} Qb4 {[%emt 0:00:07]} 28. Qxb4 {[%emt 0:03:03]} axb4 {[%emt 0:00:38]} 29. Nb5 {[%emt 0:00:45]} Nf6 {[%emt 0:00:21]} 30. Rhg1 {[%emt 0:02:42]} Kb8 {[%emt 0:00:50]} 31. Rd2 {[%emt 0:04:14]} Rdf8 {[%emt 0:03:11]} 32. Nbd6 {[%emt 0:03:17]} Ne8 {[%emt 0:02:47]} 33. Nb5 {[%emt 0:00:58]} Nf6 {[%emt 0:02:02]} 34. Nbd6 {[%emt 0:00:07]} Ne8 {[%emt 0:00:32]} 35. Nb5 {[%emt 0:00:07]} 1/2-1/2

[Event "Kragero Resort Chess A 2019"]
[Site "Kragero"]
[Date "2019.02.24"]
[Round "8.27"]
[White "Holleland, Sigve"]
[Black "Krivenko, Dion"]
[Result "1-0"]
[ECO "B07"]
[WhiteElo "2009"]
[BlackElo "1725"]
[Annotator "NA RC"]
[PlyCount "29"]
[EventDate "2019.02.20"]
[EventType "swiss"]
[EventCountry "NOR"]
[SourceTitle "playchess.com"]
[Source "ChessBase"]
[SourceQuality "1"]
[TimeControl "5400+30"]

{[%evp 10,19,50,60,47,32767,32767,0,0,-8,-14,-43]} 1. d4 {[%emt 0:03:56]} Nf6 {[%emt 0:00:00]} 2. Bf4 {[%emt 0:00:08]} g6 {[%emt 0:00:05]} 3. Nc3 {[%emt 0:00:33]} Bg7 {[%emt 0:00:12]} 4. e4 {[%emt 0:00:08]} d6 {[%emt 0:01:58]} 5. Qd2 {[%emt 0:00:40]} O-O {[%emt 0:01:56]} 6. O-O-O {[%emt 0:02:54]} c6 {[%emt 0:06:21] LiveBook: 9 Games} 7. h4 {[%emt 0:02:50]} b5 {[%emt 0:02:52]} 8. h5 {[%emt 0:05:18]} b4 {[%emt 0:09:42]} ({Don't play} 8... Nxh5 $6 9. Bh6 $16) 9. Nb1 {[%emt 0:00:15]} Nxe4 {[%emt 0:08:12]} 10. Qe3 $15 {[%emt 0:00:51]} Nf6 {[%emt 0:09:33]} 11. Bc4 {[%emt 0:03:32]} d5 {[%emt 0:11:31]} 12. Be2 {[%emt 0:01:05]} Nxh5 {[%emt 0:06:44]} 13. Bh6 {[%emt 0:20:23]} Nd7 {[%emt 0:14:34]} 14. Bxh5 {[%emt 0:04:08]} gxh5 {[%emt 0:01:42]} 15. Qg5 {[%emt 0:00:17]} 1-0

[Event "Kragero Resort Chess A 2019"]
[Site "Kragero"]
[Date "2019.02.24"]
[Round "8.28"]
[White "Skaslien, Ingrid"]
[Black "Sebastian, Andreas"]
[Result "1/2-1/2"]
[ECO "E38"]
[WhiteElo "1828"]
[BlackElo "1962"]
[Annotator "NA RC"]
[PlyCount "128"]
[EventDate "2019.02.20"]
[EventType "swiss"]
[EventCountry "NOR"]
[SourceTitle "playchess.com"]
[Source "ChessBase"]
[SourceQuality "1"]
[TimeControl "5400+30"]

1. d4 {[%emt 0:00:00]} Nf6 {[%emt 0:03:41]} 2. c4 {[%emt 0:00:00]} e6 {[%emt 0:00:12]} 3. Nc3 {[%emt 0:00:15]} Bb4 {[%emt 0:00:08]} 4. Qc2 {[%emt 0:00:23]} O-O {[%emt 0:00:48]} 5. e3 {[%emt 0:00:19]} c5 {[%emt 0:03:05]} 6. Nf3 {[%emt 0:03:59]} b6 {[%emt 0:00:43]} 7. Bd3 {[%emt 0:04:24]} Bb7 {[%emt 0:00:30]} 8. O-O {[%emt 0:01:13]} cxd4 {[%emt 0:03:36]} 9. Nxd4 {[%emt 0:00:19]} Nc6 {[%emt 0:01:15]} 10. Nxc6 {[%emt 0:08:56]} Bxc6 {[%emt 0:01:25]} 11. a3 {[%emt 0:05:35]} Bxc3 {[%emt 0:06:25]} 12. Qxc3 {[%emt 0:00:57]} d5 {[%emt 0:01:17]} 13. b3 {[%emt 0:04:21]} Rc8 $11 {[%emt 0:01:48]} 14. Qe5 {[%emt 0:03:22]} dxc4 {[%emt 0:08:50]} 15. Bxc4 {[%emt 0:01:21]} Nd7 {[%emt 0:01:36]} 16. Qg3 {[%emt 0:05:42]} Qf6 {[%emt 0:00:53]} 17. Rb1 {[%emt 0:00:59]} Be4 {[%emt 0:02:51]} 18. Bb2 {[%emt 0:01:19]} Qg6 {[%emt 0:00:33]} 19. Qxg6 {[%emt 0:03:06]} Bxg6 {[%emt 0:01:22]} 20. Rbc1 {[%emt 0:04:07]} Nc5 {[%emt 0:07:12]} 21. Rfd1 {[%emt 0:08:20]} Rfd8 {[%emt 0:01:06]} 22. Bd4 {[%emt 0:05:57]} Bd3 {[%emt 0:14:25]} 23. Bxd3 {[%emt 0:13:56]} Nxd3 {[%emt 0:00:15]} 24. Rxc8 {[%emt 0:00:54]} Rxc8 {[%emt 0:00:09]} 25. Kf1 {[%emt 0:00:47]} Nc1 {[%emt 0:12:10]} 26. b4 {[%emt 0:02:17]} f6 {[%emt 0:00:36]} 27. e4 {[%emt 0:03:10]} Rc7 {[%emt 0:08:32]} 28. Be3 {[%emt 0:04:18]} Na2 {[%emt 0:01:41]} 29. Ke1 {[%emt 0:02:29]} Nc3 {[%emt 0:01:23]} 30. Rc1 {[%emt 0:00:38]} Nb5 {[%emt 0:00:05]} 31. Rxc7 {[%emt 0:00:09]} Nxc7 {[%emt 0:00:04]} 32. Kd2 {[%emt 0:00:50]} Kf7 {[%emt 0:00:19]} 33. a4 {[%emt 0:00:37]} Ke7 {[%emt 0:00:30]} 34. a5 {[%emt 0:03:46]} bxa5 {[%emt 0:02:01]} 35. bxa5 {[%emt 0:00:46]} a6 {[%emt 0:00:31]} 36. Kd3 {[%emt 0:00:35]} Kd7 {[%emt 0:00:10]} 37. Kc4 {[%emt 0:02:56]} Kc6 {[%emt 0:00:10]} 38. f4 {[%emt 0:01:37]} Nb5 {[%emt 0:03:07]} 39. Bc5 {[%emt 0:03:09]} Nc3 {[%emt 0:01:05]} 40. Bf8 {[%emt 0:00:54]} Nxe4 {[%emt 0:00:24]} 41. Bxg7 {[%emt 0:00:08]} Nd6+ {[%emt 0:00:24]} 42. Kb4 {[%emt 0:00:25]} f5 {[%emt 0:00:06]} 43. Be5 {[%emt 0:00:34]} Ne4 {[%emt 0:00:32]} 44. Kc4 {[%emt 0:00:55]} Nd2+ {[%emt 0:00:33]} 45. Kc3 {[%emt 0:01:11]} Nf1 {[%emt 0:00:25]} 46. h3 {[%emt 0:00:18]} Ne3 {[%emt 0:00:33]} 47. g3 {[%emt 0:00:30]} Kd5 {[%emt 0:02:09]} 48. Kd3 {[%emt 0:00:32]} Nc4 {[%emt 0:00:09]} 49. Bc3 {[%emt 0:00:36]} h5 {[%emt 0:00:29]} 50. Bb4 {[%emt 0:00:35]} Nb2+ {[%emt 0:00:10]} 51. Kc3 {[%emt 0:00:15]} Nd1+ {[%emt 0:00:58]} 52. Kd2 {[%emt 0:00:23]} Nf2 {[%emt 0:00:06]} 53. Ke2 {[%emt 0:00:13]} Ne4 {[%emt 0:04:37]} 54. Kf3 {[%emt 0:00:07]} Kc4 {[%emt 0:00:17]} 55. Be1 {[%emt 0:00:12]} Nf6 {[%emt 0:00:49]} 56. Bf2 {[%emt 0:00:36]} Kd3 {[%emt 0:05:31]} 57. Bb6 {[%emt 0:00:21]} Ne4 {[%emt 0:00:38]} 58. g4 {[%emt 0:00:41]} hxg4+ {[%emt 0:00:22]} 59. hxg4 {[%emt 0:00:05]} Nd2+ {[%emt 0:00:51]} 60. Kg3 {[%emt 0:00:07]} fxg4 {[%emt 0:01:12]} 61. Kxg4 {[%emt 0:00:06]} Ke4 {[%emt 0:00:12]} 62. Kg5 {[%emt 0:00:49]} Kd5 {[%emt 0:00:35]} 63. f5 {[%emt 0:00:45]} Nf3+ {[%emt 0:00:59]} 64. Kf4 {[%emt 0:00:10]} exf5 {[%emt 0:00:40] Ke4+ [%emt 00:00:22] Ke5+} 1/2-1/2

[Event "Kragero Resort Chess A 2019"]
[Site "Kragero"]
[Date "2019.02.24"]
[Round "8.31"]
[White "Jonsson, Gauti Pall"]
[Black "Valvag, Torbjorn"]
[Result "1-0"]
[ECO "B23"]
[WhiteElo "2070"]
[BlackElo "1698"]
[Annotator "NA RC"]
[PlyCount "59"]
[EventDate "2019.02.20"]
[EventType "swiss"]
[EventCountry "NOR"]
[SourceTitle "playchess.com"]
[Source "ChessBase"]
[SourceQuality "1"]
[TimeControl "5400+30"]

1. e4 {[%emt 0:00:21]} c5 {[%emt 0:00:00]} 2. Nc3 {[%emt 0:00:24]} Nc6 {[%emt 0:00:00]} 3. Bb5 {[%emt 0:00:29]} g6 {[%emt 0:02:07]} 4. Bxc6 {[%emt 0:00:58]} dxc6 {[%emt 0:00:07]} 5. f4 {[%emt 0:00:36]} Bg7 {[%emt 0:02:08]} 6. Nf3 {[%emt 0:00:23] B23: Closed Sicilian: Lines without g3} Nf6 {[%emt 0:05:28]} 7. O-O {[%emt 0:00:49]} (7. d3 c4 8. d4 b5 9. a3 O-O 10. O-O Qb6 11. h3 Nd7 12. Be3 Bb7 13. Qe1 {1-0 (36) Mons,L (2554)-Michalik,P (2564) Austria 2019}) 7... b6 {[%emt 0:02:04]} 8. d3 {[%emt 0:01:07]} O-O {[%emt 0:04:30]} 9. Qe1 {[%emt 0:01:11]} Nd7 {[%emt 0:07:31]} 10. Qg3 {[%emt 0:03:38]} Qc7 {[%emt 0:01:44]} 11. Qh4 {[%emt 0:05:05]} Re8 $146 {[%emt 0:04:52]} ({Predecessor:} 11... f6 12. Be3 e5 13. Rf2 exf4 14. Bxf4 Ne5 15. Raf1 Nxf3+ 16. Rxf3 {½-½ (59) Ibarra Chami,L (2369)-Ordunez Echarte,D (2224) Havana 2008}) 12. f5 {[%emt 0:03:25]} ({But not} 12. Ng5 $6 h6 $11) 12... Nf8 {[%emt 0:06:04]} 13. Bh6 {[%emt 0:03:27]} f6 {[%emt 0:03:49]} 14. Bxg7 {[%emt 0:02:39]} Kxg7 {[%emt 0:00:07]} 15. Ne2 {[%emt 0:00:51]} gxf5 {[%emt 0:03:10]} 16. Qh5 {[%emt 0:02:03]} fxe4 {[%emt 0:04:57]} 17. Ng5 $2 {[%emt 0:04:29]} ({Inferior is} 17. dxe4 Ng6 $15) (17. Qxe8 $16 exf3 18. Rxf3) 17... Rd8 $1 {[%emt 0:05:30]} 18. Qf7+ {[%emt 0:01:09]} Kh8 {[%emt 0:00:42]} 19. Rxf6 {[%emt 0:01:24]} ({Only move:} 19. Nxe4 $15 Be6 20. Qh5) 19... Qe5 {[%emt 0:03:01]} 20. Nxh7 {[%emt 0:07:00]} exf6 {[%emt 0:05:23]} 21. Nxf8 {[%emt 0:00:53]} Bf5 {[%emt 0:02:50]} 22. Qh5+ {[%emt 0:01:20]} Kg7 {[%emt 0:00:14]} 23. Rf1 $17 {[%emt 0:00:08]} (23. Ng3 $11 {keeps the balance.} Bc8 24. Qg6+ Kxf8 25. Rf1) 23... Rxf8 {[%emt 0:01:08]} 24. Rxf5 {[%emt 0:00:20]} Qe8 {[%emt 0:01:50]} 25. Qh4 {[%emt 0:01:32]} Rh8 {[%emt 0:01:41]} 26. Qxf6+ {[%emt 0:00:15]} Kh7 {[%emt 0:00:20]} 27. Qh4+ {[%emt 0:04:06]} Kg7 {[%emt 0:00:16]} 28. Qg4+ {[%emt 0:00:40]} Kh6 {[%emt 0:01:08]} 29. Rf6+ {[%emt 0:00:15]} Kh7 {[%emt 0:00:09]} 30. Qf5+ {[%emt 0:00:30]} 1-0